[Event "Titled Tuesday Blitz November 16 2021"]
[White "Maly, Alexey"]
[Black "Matinian, Nikita"]
[WhiteFideId "14103184"]
[BlackFideId "24129100"]
[WhiteElo "2294"]
[BlackElo "2422"]
[Result "1/2-1/2"]
[Round "08"]
[TimeControl "180+1"]
[Date "2021.11.16"]
[WhiteClock "0:00:31"]
[BlackClock "0:00:22"]

1. d4 {[%clk 0:03:00]}  Nf6 {[%clk 0:02:59]} 2. c4 {[%clk 0:02:59]}  e6 {[%clk 0:03:00]} 3. Nf3 {[%clk 0:03:00]}  Bb4+ {[%clk 0:02:59]} 4. Nbd2 {[%clk 0:02:59]}  b6 {[%clk 0:02:58]} 5. g3 {[%clk 0:02:59]}  Bb7 {[%clk 0:02:58]} 6. Bg2 {[%clk 0:03:00]}  O-O {[%clk 0:02:56]} 7. O-O {[%clk 0:03:00]}  a5 {[%clk 0:02:56]} 8. b3 {[%clk 0:03:00]}  a4 {[%clk 0:02:53]} 9. Rb1 {[%clk 0:02:53]}  axb3 {[%clk 0:02:51]} 10. axb3 {[%clk 0:02:53]}  Nc6 {[%clk 0:02:49]} 11. Bb2 {[%clk 0:02:52]}  Ra2 {[%clk 0:02:46]} 12. Qc2 {[%clk 0:02:48]}  Qe7 {[%clk 0:02:36]} 13. Ra1 {[%clk 0:02:47]}  Rfa8 {[%clk 0:02:36]} 14. Rxa2 {[%clk 0:02:47]}  Rxa2 {[%clk 0:02:37]} 15. Ra1 {[%clk 0:02:47]}  Rxa1+ {[%clk 0:02:37]} 16. Bxa1 {[%clk 0:02:48]}  Na5 {[%clk 0:02:36]} 17. Bc3 {[%clk 0:02:39]}  Bxc3 {[%clk 0:02:35]} 18. Qxc3 {[%clk 0:02:40]}  Qa3 {[%clk 0:02:35]} 19. Ne1 {[%clk 0:02:35]}  Bxg2 {[%clk 0:02:28]} 20. Kxg2 {[%clk 0:02:35]}  c5 {[%clk 0:02:18]} 21. Nc2 {[%clk 0:02:27]}  Qa2 {[%clk 0:02:10]} 22. b4 {[%clk 0:02:18]}  cxb4 {[%clk 0:01:49]} 23. Nxb4 {[%clk 0:02:18]}  Qa4 {[%clk 0:01:50]} 24. Nd3 {[%clk 0:02:08]}  h6 {[%clk 0:01:48]} 25. e4 {[%clk 0:02:06]}  Qc6 {[%clk 0:01:38]} 26. f3 {[%clk 0:01:56]}  d5 {[%clk 0:01:38]} 27. exd5 {[%clk 0:01:49]}  Nxd5 {[%clk 0:01:36]} 28. Qc1 {[%clk 0:01:36]}  Nxc4 {[%clk 0:01:32]} 29. Nxc4 {[%clk 0:01:12]}  Qxc4 {[%clk 0:01:31]} 30. Qxc4 {[%clk 0:01:10]}  Ne3+ {[%clk 0:01:31]} 31. Kf2 {[%clk 0:01:07]}  Nxc4 {[%clk 0:01:32]} 32. Ke2 {[%clk 0:01:03]}  Kf8 {[%clk 0:01:31]} 33. h4 {[%clk 0:01:01]}  Ke7 {[%clk 0:01:31]} 34. Nf4 {[%clk 0:00:58]}  Kd6 {[%clk 0:01:22]} 35. Kd3 {[%clk 0:00:55]}  b5 {[%clk 0:01:22]} 36. Nh5 {[%clk 0:00:53]}  g6 {[%clk 0:01:22]} 37. Nf6 {[%clk 0:00:53]}  h5 {[%clk 0:01:08]} 38. g4 {[%clk 0:00:49]}  hxg4 {[%clk 0:01:05]} 39. fxg4 {[%clk 0:00:50]}  Ke7 {[%clk 0:01:03]} 40. g5 {[%clk 0:00:47]}  Nd6 {[%clk 0:01:03]} 41. h5 {[%clk 0:00:45]}  gxh5 {[%clk 0:01:01]} 42. Nxh5 {[%clk 0:00:46]}  Nf5 {[%clk 0:00:58]} 43. Nf4 {[%clk 0:00:43]}  Nh4 {[%clk 0:00:52]} 44. Ke4 {[%clk 0:00:41]}  Kd6 {[%clk 0:00:51]} 45. Nd3 {[%clk 0:00:39]}  Ng6 {[%clk 0:00:45]} 46. Nb4 {[%clk 0:00:39]}  Ne7 {[%clk 0:00:42]} 47. Nc2 {[%clk 0:00:37]}  Nc6 {[%clk 0:00:42]} 48. Na3 {[%clk 0:00:35]}  b4 {[%clk 0:00:43]} 49. Nc4+ {[%clk 0:00:35]}  Kd7 {[%clk 0:00:39]} 50. d5 {[%clk 0:00:35]}  exd5+ {[%clk 0:00:38]} 51. Kxd5 {[%clk 0:00:36]}  b3 {[%clk 0:00:29]} 52. Kc5 {[%clk 0:00:34]}  Nd8 {[%clk 0:00:23]} 53. Kb4 {[%clk 0:00:32]}  Ke6 {[%clk 0:00:23]} 54. Kxb3 {[%clk 0:00:30]}  Kf5 {[%clk 0:00:23]} 55. Nd6+ {[%clk 0:00:30]}  Kxg5 {[%clk 0:00:22]} 56. Nxf7+ {[%clk 0:00:31]} 1/2-1/2


[Site "https://www.chess.com"]

[Event "Titled Tuesday Blitz November 16 2021"]
[White "Paravyan, David"]
[Black "Yoo, Christopher Woojin"]
[WhiteFideId "4194985"]
[BlackFideId "30909694"]
[WhiteElo "2639"]
[BlackElo "2105"]
[Result "0-1"]
[Round "08"]
[TimeControl "180+1"]
[Date "2021.11.16"]
[WhiteClock "0:00:03"]
[BlackClock "0:00:04"]

1. e4 {[%clk 0:02:59]}  c5 {[%clk 0:02:58]} 2. Nf3 {[%clk 0:02:59]}  Nc6 {[%clk 0:02:59]} 3. Nc3 {[%clk 0:02:51]}  e6 {[%clk 0:02:56]} 4. d4 {[%clk 0:02:51]}  cxd4 {[%clk 0:02:56]} 5. Nxd4 {[%clk 0:02:52]}  Nf6 {[%clk 0:02:56]} 6. Nxc6 {[%clk 0:02:47]}  bxc6 {[%clk 0:02:55]} 7. Bd3 {[%clk 0:02:46]}  d5 {[%clk 0:02:52]} 8. O-O {[%clk 0:02:46]}  Bd6 {[%clk 0:02:45]} 9. exd5 {[%clk 0:02:37]}  cxd5 {[%clk 0:02:42]} 10. Nb5 {[%clk 0:02:37]}  Bb8 {[%clk 0:02:30]} 11. c4 {[%clk 0:02:38]}  O-O {[%clk 0:02:26]} 12. Bg5 {[%clk 0:02:37]}  h6 {[%clk 0:02:22]} 13. Bh4 {[%clk 0:02:36]}  a6 {[%clk 0:02:20]} 14. Nc3 {[%clk 0:02:36]}  dxc4 {[%clk 0:02:16]} 15. Qf3 {[%clk 0:02:09]}  cxd3 {[%clk 0:01:43]} 16. Qxa8 {[%clk 0:02:08]}  Bxh2+ {[%clk 0:01:42]} 17. Kh1 {[%clk 0:01:12]}  Be5 {[%clk 0:01:30]} 18. Rad1 {[%clk 0:01:03]}  Qd4 {[%clk 0:01:12]} 19. f4 {[%clk 0:00:16]}  Bxf4 {[%clk 0:01:03]} 20. Qf3 {[%clk 0:00:17]}  Be5 {[%clk 0:00:33]} 21. Bf2 {[%clk 0:00:17]}  Qb4 {[%clk 0:00:27]} 22. Qxd3 {[%clk 0:00:08]}  Qxb2 {[%clk 0:00:26]} 23. Ne4 {[%clk 0:00:07]}  Nd5 {[%clk 0:00:12]} 24. Rb1 {[%clk 0:00:06]}  Qxa2 {[%clk 0:00:12]} 25. Bc5 {[%clk 0:00:05]}  Rd8 {[%clk 0:00:12]} 26. Qf3 {[%clk 0:00:05]}  f5 {[%clk 0:00:13]} 27. Ng3 {[%clk 0:00:04]}  Qc4 {[%clk 0:00:13]} 28. Bf2 {[%clk 0:00:03]}  Nf4 {[%clk 0:00:09]} 29. Rbc1 {[%clk 0:00:03]}  Qd3 {[%clk 0:00:06]} 30. Rfd1 {[%clk 0:00:04]}  Qxf3 {[%clk 0:00:06]} 31. Rxd8+ {[%clk 0:00:05]}  Kh7 {[%clk 0:00:03]} 32. gxf3 {[%clk 0:00:06]}  Bb7 {[%clk 0:00:04]} 33. Kg1 {[%clk 0:00:06]}  Bxf3 {[%clk 0:00:02]} 34. Rcc8 {[%clk 0:00:07]}  h5 {[%clk 0:00:02]} 35. Rh8+ {[%clk 0:00:07]}  Kg6 {[%clk 0:00:03]} 36. Be3 {[%clk 0:00:06]}  Nh3+ {[%clk 0:00:02]} 37. Kh2 {[%clk 0:00:06]}  Bg4 {[%clk 0:00:02]} 38. Kg2 {[%clk 0:00:06]}  f4 {[%clk 0:00:02]} 39. Nf1 {[%clk 0:00:03]}  fxe3 {[%clk 0:00:02]} 40. Nxe3 {[%clk 0:00:04]}  Nf4+ {[%clk 0:00:03]} 41. Kf2 {[%clk 0:00:04]}  Bd4 {[%clk 0:00:03]} 42. Rc4 {[%clk 0:00:04]}  e5 {[%clk 0:00:03]} 43. Rxd4 {[%clk 0:00:03]}  exd4 {[%clk 0:00:03]} 44. Nxg4 {[%clk 0:00:04]}  hxg4 {[%clk 0:00:04]} 45. Rd8 {[%clk 0:00:04]}  Ne6 {[%clk 0:00:03]} 46. Rd6 {[%clk 0:00:04]}  Kf5 {[%clk 0:00:03]} 47. Rxa6 {[%clk 0:00:04]}  g5 {[%clk 0:00:02]} 48. Rd6 {[%clk 0:00:05]}  Ke5 {[%clk 0:00:03]} 49. Rd7 {[%clk 0:00:05]}  Nc5 {[%clk 0:00:02]} 50. Rg7 {[%clk 0:00:04]}  Ne4+ {[%clk 0:00:02]} 51. Ke2 {[%clk 0:00:04]}  Kf4 {[%clk 0:00:03]} 52. Rf7+ {[%clk 0:00:04]}  Ke5 {[%clk 0:00:03]} 53. Rg7 {[%clk 0:00:04]}  Ng3+ {[%clk 0:00:02]} 54. Kd3 {[%clk 0:00:04]}  Kf4 {[%clk 0:00:02]} 55. Ra7 {[%clk 0:00:01]}  Nf5 {[%clk 0:00:03]} 56. Ra1 {[%clk 0:00:02]}  g3 {[%clk 0:00:03]} 57. Rf1+ {[%clk 0:00:02]}  Kg4 {[%clk 0:00:04]} 58. Ke4 {[%clk 0:00:02]}  g2 {[%clk 0:00:04]} 59. Rg1 {[%clk 0:00:03]}  Nh4 {[%clk 0:00:04]} 0-1


[Site "https://www.chess.com"]

[Event "Titled Tuesday Blitz November 16 2021"]
[White "Rustemov, Alexander"]
[Black "Gurvich, Vitaly"]
[WhiteFideId "4119002"]
[BlackFideId "24164852"]
[WhiteElo "2762"]
[BlackElo "2275"]
[Result "1/2-1/2"]
[Round "08"]
[TimeControl "180+1"]
[Date "2021.11.16"]
[WhiteClock "0:00:02"]
[BlackClock "0:01:02"]

1. d4 {[%clk 0:03:00]}  Nf6 {[%clk 0:02:59]} 2. c4 {[%clk 0:03:00]}  c5 {[%clk 0:02:59]} 3. d5 {[%clk 0:03:00]}  b5 {[%clk 0:02:59]} 4. Nf3 {[%clk 0:03:00]}  g6 {[%clk 0:02:58]} 5. cxb5 {[%clk 0:02:58]}  Bg7 {[%clk 0:02:57]} 6. Nc3 {[%clk 0:02:57]}  a6 {[%clk 0:02:57]} 7. e3 {[%clk 0:02:38]}  axb5 {[%clk 0:02:55]} 8. Bxb5 {[%clk 0:02:37]}  O-O {[%clk 0:02:56]} 9. O-O {[%clk 0:02:33]}  d6 {[%clk 0:02:56]} 10. a4 {[%clk 0:02:22]}  Na6 {[%clk 0:02:55]} 11. e4 {[%clk 0:02:20]}  Nb4 {[%clk 0:02:55]} 12. h3 {[%clk 0:02:17]}  Ba6 {[%clk 0:02:51]} 13. Bf4 {[%clk 0:02:12]}  Nd7 {[%clk 0:02:48]} 14. Qd2 {[%clk 0:02:09]}  Re8 {[%clk 0:02:31]} 15. Rfe1 {[%clk 0:02:08]}  Qc7 {[%clk 0:02:27]} 16. Rad1 {[%clk 0:01:48]}  Reb8 {[%clk 0:02:15]} 17. Qe2 {[%clk 0:01:47]}  Bxb5 {[%clk 0:02:12]} 18. axb5 {[%clk 0:01:45]}  c4 {[%clk 0:02:06]} 19. Be3 {[%clk 0:01:25]}  Nd3 {[%clk 0:02:00]} 20. Rf1 {[%clk 0:01:25]}  Bxc3 {[%clk 0:01:59]} 21. bxc3 {[%clk 0:01:23]}  Rxb5 {[%clk 0:01:59]} 22. Rb1 {[%clk 0:01:10]}  Rba5 {[%clk 0:01:57]} 23. Nd4 {[%clk 0:00:59]}  N7c5 {[%clk 0:01:53]} 24. Nc6 {[%clk 0:00:55]}  Ra2 {[%clk 0:01:52]} 25. Qf3 {[%clk 0:00:53]}  Nb3 {[%clk 0:01:45]} 26. Rfd1 {[%clk 0:00:46]}  f6 {[%clk 0:01:42]} 27. Rxd3 {[%clk 0:00:42]}  cxd3 {[%clk 0:01:39]} 28. Rxb3 {[%clk 0:00:42]}  d2 {[%clk 0:01:39]} 29. Rb1 {[%clk 0:00:31]}  Ra1 {[%clk 0:01:28]} 30. Rd1 {[%clk 0:00:28]}  Qb7 {[%clk 0:01:28]} 31. Bxd2 {[%clk 0:00:24]}  Qb2 {[%clk 0:01:22]} 32. Nxe7+ {[%clk 0:00:15]}  Kf7 {[%clk 0:01:22]} 33. Kh2 {[%clk 0:00:07]}  Kxe7 {[%clk 0:01:12]} 34. Qg4 {[%clk 0:00:05]}  Rxd1 {[%clk 0:01:09]} 35. Qe6+ {[%clk 0:00:04]}  Kd8 {[%clk 0:01:09]} 36. Qxd6+ {[%clk 0:00:04]}  Ke8 {[%clk 0:01:08]} 37. Qe6+ {[%clk 0:00:04]}  Kd8 {[%clk 0:01:06]} 38. Qxf6+ {[%clk 0:00:05]}  Ke8 {[%clk 0:01:02]} 39. Qe6+ {[%clk 0:00:05]}  Kd8 {[%clk 0:01:02]} 40. Bg5+ {[%clk 0:00:05]}  Kc7 {[%clk 0:01:02]} 41. Qc6+ {[%clk 0:00:05]}  Kb8 {[%clk 0:01:02]} 42. Bf4+ {[%clk 0:00:04]}  Ka7 {[%clk 0:01:02]} 43. Be3+ {[%clk 0:00:02]}  Kb8 {[%clk 0:01:02]} 44. Bf4+ {[%clk 0:00:01]}  Ka7 {[%clk 0:01:02]} 45. Be3+ {[%clk 0:00:02]}  Kb8 {[%clk 0:01:02]} 46. Bf4+ {[%clk 0:00:02]} 1/2-1/2


[Site "https://www.chess.com"]

[Event "Titled Tuesday Blitz November 16 2021"]
[White "Sarana, Alexey"]
[Black "Antipov, Mikhail Al."]
[WhiteFideId "24133795"]
[BlackFideId "4107012"]
[WhiteElo "2689"]
[BlackElo "2587"]
[Result "1-0"]
[Round "08"]
[TimeControl "180+1"]
[Date "2021.11.16"]
[WhiteClock "0:00:19"]
[BlackClock "0:00:02"]

1. d4 {[%clk 0:03:00]}  Nf6 {[%clk 0:02:59]} 2. c4 {[%clk 0:03:01]}  g6 {[%clk 0:02:56]} 3. Nc3 {[%clk 0:03:00]}  d5 {[%clk 0:02:55]} 4. cxd5 {[%clk 0:02:59]}  Nxd5 {[%clk 0:02:54]} 5. e4 {[%clk 0:02:59]}  Nxc3 {[%clk 0:02:54]} 6. bxc3 {[%clk 0:03:00]}  Bg7 {[%clk 0:02:55]} 7. Nf3 {[%clk 0:03:00]}  c5 {[%clk 0:02:54]} 8. Bb5+ {[%clk 0:02:59]}  Nc6 {[%clk 0:02:54]} 9. O-O {[%clk 0:02:59]}  O-O {[%clk 0:02:37]} 10. Bxc6 {[%clk 0:02:59]}  bxc6 {[%clk 0:02:36]} 11. Qc2 {[%clk 0:02:59]}  Qa5 {[%clk 0:02:29]} 12. a4 {[%clk 0:02:58]}  Bg4 {[%clk 0:02:22]} 13. Ne5 {[%clk 0:02:54]}  Bc8 {[%clk 0:01:42]} 14. Nxc6 {[%clk 0:02:51]}  Qc7 {[%clk 0:01:42]} 15. d5 {[%clk 0:02:37]}  Bb7 {[%clk 0:01:41]} 16. Bg5 {[%clk 0:02:22]}  Bxc6 {[%clk 0:01:37]} 17. dxc6 {[%clk 0:02:21]}  h6 {[%clk 0:01:29]} 18. Bh4 {[%clk 0:02:20]}  Qxc6 {[%clk 0:01:26]} 19. Rab1 {[%clk 0:02:17]}  c4 {[%clk 0:01:20]} 20. Rfd1 {[%clk 0:02:09]}  Rfd8 {[%clk 0:01:09]} 21. Bxe7 {[%clk 0:02:05]}  Re8 {[%clk 0:00:37]} 22. Bb4 {[%clk 0:02:02]}  a5 {[%clk 0:00:35]} 23. Bd6 {[%clk 0:01:54]}  Rxe4 {[%clk 0:00:32]} 24. Rb5 {[%clk 0:01:45]}  Qxd6 {[%clk 0:00:27]} 25. f3 {[%clk 0:01:29]}  Qa3 {[%clk 0:00:12]} 26. Qxe4 {[%clk 0:01:20]}  Rc8 {[%clk 0:00:12]} 27. Rb7 {[%clk 0:00:50]}  Bxc3 {[%clk 0:00:05]} 28. Rxf7 {[%clk 0:00:25]}  Qc5+ {[%clk 0:00:04]} 29. Kf1 {[%clk 0:00:25]}  Kxf7 {[%clk 0:00:04]} 30. Rd7+ {[%clk 0:00:25]}  Kf6 {[%clk 0:00:02]} 31. g4 {[%clk 0:00:19]} 1-0


[Site "https://www.chess.com"]

[Event "Titled Tuesday Blitz November 16 2021"]
[White "Shubin, Kirill"]
[Black "Sadhwani, Raunak"]
[WhiteFideId "34119962"]
[BlackFideId "35093487"]
[WhiteElo "2501"]
[BlackElo "2517"]
[Result "0-1"]
[Round "08"]
[TimeControl "180+1"]
[Date "2021.11.16"]
[WhiteClock "0:00:18"]
[BlackClock "0:00:25"]

1. e4 {[%clk 0:03:00]}  e5 {[%clk 0:03:00]} 2. Nf3 {[%clk 0:03:00]}  Nc6 {[%clk 0:03:01]} 3. Bb5 {[%clk 0:03:00]}  Nge7 {[%clk 0:03:00]} 4. O-O {[%clk 0:02:59]}  Ng6 {[%clk 0:03:01]} 5. c3 {[%clk 0:02:53]}  a6 {[%clk 0:03:00]} 6. Ba4 {[%clk 0:02:51]}  d5 {[%clk 0:03:00]} 7. exd5 {[%clk 0:02:48]}  Qxd5 {[%clk 0:03:01]} 8. d4 {[%clk 0:02:46]}  Bg4 {[%clk 0:03:01]} 9. Re1 {[%clk 0:02:34]}  O-O-O {[%clk 0:02:55]} 10. Bxc6 {[%clk 0:02:30]}  Qxc6 {[%clk 0:02:52]} 11. Nbd2 {[%clk 0:02:11]}  exd4 {[%clk 0:02:41]} 12. Nxd4 {[%clk 0:01:52]}  Rxd4 {[%clk 0:02:31]} 13. f3 {[%clk 0:01:52]}  Rxd2 {[%clk 0:02:20]} 14. Bxd2 {[%clk 0:01:53]}  Bc5+ {[%clk 0:02:15]} 15. Be3 {[%clk 0:01:53]}  Rd8 {[%clk 0:02:03]} 16. Qc2 {[%clk 0:01:48]}  Be6 {[%clk 0:01:58]} 17. Qf2 {[%clk 0:01:45]}  Ne5 {[%clk 0:01:43]} 18. Rad1 {[%clk 0:01:40]}  Rxd1 {[%clk 0:01:26]} 19. Rxd1 {[%clk 0:01:41]}  Bxe3 {[%clk 0:01:26]} 20. Qxe3 {[%clk 0:01:42]}  Nc4 {[%clk 0:01:24]} 21. Qd4 {[%clk 0:01:28]}  Qb6 {[%clk 0:01:20]} 22. b3 {[%clk 0:01:27]}  Qxd4+ {[%clk 0:01:19]} 23. Rxd4 {[%clk 0:01:27]}  Nd6 {[%clk 0:01:20]} 24. g4 {[%clk 0:01:25]}  Kd7 {[%clk 0:01:16]} 25. Kf2 {[%clk 0:01:21]}  c5 {[%clk 0:01:16]} 26. Rd2 {[%clk 0:01:17]}  Kc6 {[%clk 0:01:15]} 27. Ke3 {[%clk 0:01:09]}  b5 {[%clk 0:01:15]} 28. Kf4 {[%clk 0:01:03]}  f6 {[%clk 0:00:44]} 29. g5 {[%clk 0:01:00]}  a5 {[%clk 0:00:42]} 30. h4 {[%clk 0:00:52]}  a4 {[%clk 0:00:41]} 31. b4 {[%clk 0:00:36]}  a3 {[%clk 0:00:37]} 32. h5 {[%clk 0:00:25]}  fxg5+ {[%clk 0:00:31]} 33. Kxg5 {[%clk 0:00:26]}  Bf7 {[%clk 0:00:30]} 34. Rg2 {[%clk 0:00:22]}  h6+ {[%clk 0:00:24]} 35. Kf4 {[%clk 0:00:21]}  Bxh5 {[%clk 0:00:16]} 36. Rxg7 {[%clk 0:00:20]}  Bf7 {[%clk 0:00:12]} 37. Rg2 {[%clk 0:00:20]}  Bd5 {[%clk 0:00:09]} 38. Rh2 {[%clk 0:00:19]}  h5 {[%clk 0:00:06]} 39. Ke3 {[%clk 0:00:09]}  h4 {[%clk 0:00:05]} 40. Kf4 {[%clk 0:00:10]}  h3 {[%clk 0:00:05]} 41. Kg3 {[%clk 0:00:10]}  Be6 {[%clk 0:00:04]} 42. Kf4 {[%clk 0:00:10]}  Kd5 {[%clk 0:00:02]} 43. Rd2+ {[%clk 0:00:08]}  Kc6 {[%clk 0:00:03]} 44. Re2 {[%clk 0:00:06]}  Bc4 {[%clk 0:00:03]} 45. Rh2 {[%clk 0:00:06]}  cxb4 {[%clk 0:00:03]} 46. cxb4 {[%clk 0:00:06]}  Kd5 {[%clk 0:00:04]} 47. Rd2+ {[%clk 0:00:06]}  Ke6 {[%clk 0:00:04]} 48. Kg5 {[%clk 0:00:05]}  Nf5 {[%clk 0:00:04]} 49. Kf4 {[%clk 0:00:05]}  Ne7 {[%clk 0:00:03]} 50. Rh2 {[%clk 0:00:05]}  Nd5+ {[%clk 0:00:03]} 51. Ke4 {[%clk 0:00:05]}  Nxb4 {[%clk 0:00:03]} 52. Kd4 {[%clk 0:00:05]}  Nxa2 {[%clk 0:00:03]} 53. Rxh3 {[%clk 0:00:06]}  Nb4 {[%clk 0:00:04]} 54. Rh6+ {[%clk 0:00:06]}  Kf5 {[%clk 0:00:04]} 55. Kc3 {[%clk 0:00:05]}  a2 {[%clk 0:00:05]} 56. Rh1 {[%clk 0:00:05]}  Nd5+ {[%clk 0:00:05]} 57. Kd4 {[%clk 0:00:05]}  Nf4 {[%clk 0:00:05]} 58. Ra1 {[%clk 0:00:05]}  Ne6+ {[%clk 0:00:06]} 59. Kc3 {[%clk 0:00:04]}  Nc5 {[%clk 0:00:06]} 60. Kb4 {[%clk 0:00:05]}  Nd3+ {[%clk 0:00:06]} 61. Ka5 {[%clk 0:00:05]}  Kf4 {[%clk 0:00:07]} 62. Rxa2 {[%clk 0:00:05]}  Bxa2 {[%clk 0:00:07]} 63. Kxb5 {[%clk 0:00:06]}  Kxf3 {[%clk 0:00:07]} 64. Kb6 {[%clk 0:00:07]}  Ke4 {[%clk 0:00:08]} 65. Kc7 {[%clk 0:00:08]}  Kd4 {[%clk 0:00:09]} 66. Kd6 {[%clk 0:00:09]}  Bd5 {[%clk 0:00:10]} 67. Ke7 {[%clk 0:00:09]}  Ne5 {[%clk 0:00:10]} 68. Kf6 {[%clk 0:00:10]}  Nc4 {[%clk 0:00:11]} 69. Kg5 {[%clk 0:00:11]}  Ke5 {[%clk 0:00:12]} 70. Kg4 {[%clk 0:00:12]}  Be4 {[%clk 0:00:12]} 71. Kg3 {[%clk 0:00:13]}  Ne3 {[%clk 0:00:12]} 72. Kf2 {[%clk 0:00:13]}  Nf5 {[%clk 0:00:13]} 73. Ke2 {[%clk 0:00:14]}  Kd4 {[%clk 0:00:14]} 74. Kd2 {[%clk 0:00:15]}  Bd3 {[%clk 0:00:14]} 75. Ke1 {[%clk 0:00:15]}  Ke3 {[%clk 0:00:14]} 76. Kd1 {[%clk 0:00:16]}  Nd6 {[%clk 0:00:13]} 77. Kc1 {[%clk 0:00:17]}  Nc4 {[%clk 0:00:14]} 78. Kd1 {[%clk 0:00:17]}  Kd4 {[%clk 0:00:15]} 79. Kc1 {[%clk 0:00:18]}  Kc3 {[%clk 0:00:15]} 80. Kd1 {[%clk 0:00:19]}  Nb2+ {[%clk 0:00:15]} 81. Kc1 {[%clk 0:00:19]}  Bc4 {[%clk 0:00:16]} 82. Kb1 {[%clk 0:00:19]}  Nd3 {[%clk 0:00:16]} 83. Ka1 {[%clk 0:00:18]}  Nb4 {[%clk 0:00:17]} 84. Kb1 {[%clk 0:00:19]}  Nc2 {[%clk 0:00:18]} 85. Kc1 {[%clk 0:00:19]}  Ba2 {[%clk 0:00:18]} 86. Kd1 {[%clk 0:00:19]}  Nd4 {[%clk 0:00:19]} 87. Kc1 {[%clk 0:00:19]}  Ne2+ {[%clk 0:00:19]} 88. Kd1 {[%clk 0:00:19]}  Kd3 {[%clk 0:00:20]} 89. Ke1 {[%clk 0:00:20]}  Ke3 {[%clk 0:00:21]} 90. Kd1 {[%clk 0:00:20]}  Bb3+ {[%clk 0:00:21]} 91. Ke1 {[%clk 0:00:20]}  Nf4 {[%clk 0:00:21]} 92. Kf1 {[%clk 0:00:20]}  Ba4 {[%clk 0:00:19]} 93. Ke1 {[%clk 0:00:20]}  Nd3+ {[%clk 0:00:20]} 94. Kf1 {[%clk 0:00:20]}  Bc6 {[%clk 0:00:20]} 95. Kg1 {[%clk 0:00:19]}  Bd7 {[%clk 0:00:20]} 96. Kf1 {[%clk 0:00:19]}  Bg4 {[%clk 0:00:21]} 97. Kg2 {[%clk 0:00:19]}  Kf4 {[%clk 0:00:21]} 98. Kf1 {[%clk 0:00:18]}  Kg3 {[%clk 0:00:22]} 99. Kg1 {[%clk 0:00:17]}  Be2 {[%clk 0:00:22]} 100. Kh1 {[%clk 0:00:18]}  Nf2+ {[%clk 0:00:23]} 101. Kg1 {[%clk 0:00:18]}  Nh3+ {[%clk 0:00:24]} 102. Kh1 {[%clk 0:00:18]}  Bf3# {[%clk 0:00:25]} 0-1


[Site "https://www.chess.com"]

[Event "Titled Tuesday Blitz November 16 2021"]
[White "Sjugirov, Sanan"]
[Black "Kryakvin, Dmitry"]
[WhiteFideId "4189302"]
[BlackFideId "4153278"]
[WhiteElo "2653"]
[BlackElo "2372"]
[Result "1-0"]
[Round "08"]
[TimeControl "180+1"]
[Date "2021.11.16"]
[WhiteClock "0:00:04"]
[BlackClock "0:00:07"]

1. e4 {[%clk 0:03:00]}  c5 {[%clk 0:02:58]} 2. Nf3 {[%clk 0:03:00]}  d6 {[%clk 0:02:59]} 3. Bb5+ {[%clk 0:03:00]}  Bd7 {[%clk 0:02:59]} 4. Bxd7+ {[%clk 0:02:59]}  Qxd7 {[%clk 0:02:59]} 5. O-O {[%clk 0:02:59]}  Nf6 {[%clk 0:02:59]} 6. Qe2 {[%clk 0:03:00]}  Nc6 {[%clk 0:02:57]} 7. c3 {[%clk 0:03:00]}  e6 {[%clk 0:02:57]} 8. d4 {[%clk 0:03:00]}  cxd4 {[%clk 0:02:57]} 9. cxd4 {[%clk 0:03:01]}  d5 {[%clk 0:02:57]} 10. e5 {[%clk 0:03:01]}  Ne4 {[%clk 0:02:57]} 11. Nbd2 {[%clk 0:03:02]}  Nxd2 {[%clk 0:02:54]} 12. Bxd2 {[%clk 0:03:02]}  Be7 {[%clk 0:02:54]} 13. g3 {[%clk 0:03:03]}  Rc8 {[%clk 0:02:47]} 14. Kg2 {[%clk 0:03:03]}  O-O {[%clk 0:02:40]} 15. h4 {[%clk 0:03:02]}  f6 {[%clk 0:02:30]} 16. exf6 {[%clk 0:03:02]}  Bxf6 {[%clk 0:02:29]} 17. Bc3 {[%clk 0:03:02]}  Ne7 {[%clk 0:02:16]} 18. Rfe1 {[%clk 0:03:01]}  Rc6 {[%clk 0:02:16]} 19. Bb4 {[%clk 0:02:51]}  Rf7 {[%clk 0:02:08]} 20. Bxe7 {[%clk 0:02:46]}  Qxe7 {[%clk 0:02:04]} 21. Qd3 {[%clk 0:02:44]}  Qb4 {[%clk 0:01:50]} 22. Re2 {[%clk 0:02:44]}  Qc4 {[%clk 0:01:42]} 23. Qe3 {[%clk 0:02:42]}  h6 {[%clk 0:01:37]} 24. b3 {[%clk 0:02:38]}  Qc3 {[%clk 0:01:15]} 25. Rae1 {[%clk 0:02:15]}  Qxe3 {[%clk 0:01:10]} 26. Rxe3 {[%clk 0:02:16]}  Rc2 {[%clk 0:01:07]} 27. R1e2 {[%clk 0:02:09]}  Rxe2 {[%clk 0:00:58]} 28. Rxe2 {[%clk 0:02:10]}  Re7 {[%clk 0:00:58]} 29. Rc2 {[%clk 0:02:03]}  Kf7 {[%clk 0:00:57]} 30. g4 {[%clk 0:01:45]}  g5 {[%clk 0:00:50]} 31. h5 {[%clk 0:01:31]}  e5 {[%clk 0:00:49]} 32. dxe5 {[%clk 0:01:30]}  Bxe5 {[%clk 0:00:50]} 33. Rc5 {[%clk 0:00:49]}  Ke6 {[%clk 0:00:46]} 34. Rc8 {[%clk 0:00:49]}  Bg7 {[%clk 0:00:36]} 35. Kf1 {[%clk 0:00:31]}  Kd6 {[%clk 0:00:35]} 36. Ne1 {[%clk 0:00:25]}  Re4 {[%clk 0:00:30]} 37. f3 {[%clk 0:00:23]}  Re3 {[%clk 0:00:30]} 38. Rg8 {[%clk 0:00:01]}  Bc3 {[%clk 0:00:29]} 39. Rg6+ {[%clk 0:00:01]}  Ke5 {[%clk 0:00:25]} 40. Nc2 {[%clk 0:00:02]}  Rxf3+ {[%clk 0:00:22]} 41. Ke2 {[%clk 0:00:03]}  Rg3 {[%clk 0:00:20]} 42. Ne3 {[%clk 0:00:02]}  d4 {[%clk 0:00:12]} 43. Nc4+ {[%clk 0:00:02]}  Kf4 {[%clk 0:00:12]} 44. Rf6+ {[%clk 0:00:01]}  Kxg4 {[%clk 0:00:11]} 45. Rxh6 {[%clk 0:00:02]}  d3+ {[%clk 0:00:11]} 46. Kf2 {[%clk 0:00:03]}  Bd4+ {[%clk 0:00:11]} 47. Ke1 {[%clk 0:00:02]}  Rg2 {[%clk 0:00:09]} 48. Kd1 {[%clk 0:00:02]}  Bc3 {[%clk 0:00:09]} 49. Ne3+ {[%clk 0:00:02]}  Kf3 {[%clk 0:00:07]} 50. Nxg2 {[%clk 0:00:03]}  Kxg2 {[%clk 0:00:07]} 51. Rg6 {[%clk 0:00:04]} 1-0


[Site "https://www.chess.com"]